Cogmind - Beta 9.6 @@@ ROGUE MODE // 2020.04.29 @ 10:11:50 // Winter2019/RPGLIKE Player: PhenomPhear Result: Destroyed by H-55 Commando with Assault Rifle Performance ------------- Evolutions (0) 0 Regions Visited (3) 600 Robots Destroyed (19) 95 Value Destroyed (725) 725 Prototype IDs (1) 20 Alien Tech Used (0) 0 Bonus (543) 543 TOTAL SCORE: 1983 Bonus ------- High Alert Combat Kills 77 Follower Combat Kills 166 Aligned with FarCom 300 Cogmind --------- Core Integrity 0/600 Matter 164/300 Energy 76/275 System Corruption 3% Temperature Cool (576) Movement Core (550) Ox10 Location -10/Exiles Parts ------- > --- POWER (2) -------- Deuterium Engine > --- PROPULSION (2) --- (None) > --- UTILITY (1) ------ Advanced Terrain Scanner > --- WEAPON (2) ------- Firepult > --- INVENTORY (3) ---- (None) Peak State ------------ > --- POWER ------------ Deuterium Engine > --- PROPULSION ------- (None) > --- UTILITY ---------- Advanced Terrain Scanner > --- WEAPON ----------- Firepult > --- INVENTORY -------- Deploy-a-Sentry Deploy-a-Sentry Deploy-a-Sentry [Rating: 28] Favorites ----------- Power Deuterium Engine Engine Deuterium Engine Propulsion None Utility Advanced Terrain Scanner Device Advanced Terrain Scanner Weapon Grenade Launcher Energy Cannon Firepult Launcher Grenade Launcher Impact Weapon Hammer Build | -11 -10 -10 -10 ------- Run | Scr Mat Min Exi Slots Evolved 3 | . . . 3 Power 1 | . . . 1 Propulsion 1 | . . . 1 Utility . | . . . . Weapon 1 | . . . 1 Parts Attached 8 | . 2 2 4 Power 1 | . . 1 . Engine 1 | . . 1 . Core . | . . . . Reactor . | . . . . Propulsion . | . . . . Treads . | . . . . Leg . | . . . . Wheel . | . . . . Hover . | . . . . Flight . | . . . . Utility 1 | . . 1 . Device 1 | . . 1 . Storage . | . . . . Processor . | . . . . Hackware . | . . . . Protection . | . . . . Artifact . | . . . . Weapon 6 | . 2 . 4 Energy Gun . | . . . . Energy Cannon 3 | . . . 3 Ballistic Gun . | . . . . Ballistic Cannon . | . . . . Launcher 2 | . 1 . 1 Special Weapon . | . . . . Impact Weapon 1 | . 1 . . Slashing Weapon . | . . . . Piercing Weapon . | . . . . Special Melee Weapon . | . . . . Unidentified Prototypes 1 | . . . 1 Parts Lost . | . . . . Power . | . . . . Propulsion . | . . . . Utility . | . . . . Weapon . | . . . . Highest Loss Streak . | . . . . Average Slot Usage (%) 52 | . 17 65 55 Engine 17 | . . 21 19 Device 17 | . . 18 19 Energy Cannon 4 | . . . 5 Launcher 13 | . 10 25 11 Naked Turns 28 | . 28 . . Heaviest Build 32 | . 3 13 32 Greatest Support 3 | 3 3 3 3 Greatest Overweight (x) 10 | . . 4 10 Average Overweight (x) 3 | . . 2 5 Largest Inventory Capacity 3 | . . . 3 Average Capacity 1 | . . . 1 Most Carried 3 | . . . 3 Average Carried 1 | . . . 1 Final Capacity 3 | . . . 3 Final Carried . | . . . . Class Distribution -------------------- 100% | Mutant Dominant Class ---------------- Mutant | -10/Materials Mutant | -10/Mines Mutant | -10/Exiles Resources | -11 -10 -10 -10 ----------- Run | Scr Mat Min Exi Matter Collected 214 | 73 105 36 . Remotely . | . . . . Salvage Created 639 | . 161 . 478 Parts 22 | . 5 . 17 Haulers Intercepted 1 | . 1 . . Recyclers Shooed 1 | . 1 . . Parts Field Recycled . | . . . . Retrieved Matter . | . . . . Parts Self-Destructed . | . . . . Prevented . | . . . . Kills | -11 -10 -10 -10 ------- Run | Scr Mat Min Exi Combat Hostiles Destroyed 16 | . 1 . 15 Cannons 2 | . . . 2 AOE 6 | . 1 . 5 Classes Destroyed 5 | . 3 . 2 Hauler 1 | . 1 . . Recycler 2 | . 2 . . Grunt 9 | . 1 . 8 Hunter 3 | . . . 3 Programmer 4 | . . . 4 Best Kill Streak 15 | . 4 . 15 Combat Bots Only 15 | . 1 . 15 Max Kills in Single Turn 5 | . 1 . 5 Gunslinging . | . . . . Exploded 3 | . 1 . 3 Melee . | . . . . Uniques/NPCs Destroyed . | . . . . Combat | -11 -10 -10 -10 -------- Run | Scr Mat Min Exi Damage Taken 676 | . 140 21 515 Core 607 | . 129 16 462 Absorbed by Shields . | . . . . Redirected to Core 240 | . 33 16 191 Core Remaining (%) 100 | 100 . . . Volleys Fired 10 | . 7 . 3 Largest 1 | . 1 . 1 Hottest 250 | . 30 . 250 Shots Fired 10 | . 7 . 3 Gun . | . . . . Cannon 3 | . . . 3 Launcher 7 | . 7 . . Special . | . . . . Kinetic . | . . . . Thermal 3 | . . . 3 Explosive 7 | . 7 . . Electromagnetic . | . . . . Robot Hit Streak 3 | . 3 . 3 Robot Miss Streak 3 | . 3 . 2 Penetration Max . | . . . . Secondary Targets . | . . . . Shots Hit Robots 10 | . 7 . 3 Core Hits 32 | . 9 . 23 Critical Hits . | . . . . Critical Kills . | . . . . Critical Parts Destroyed . | . . . . Melee Attacks 3 | . 3 . . Impact 3 | . 3 . . Slashing . | . . . . Piercing . | . . . . Sneak Attacks 1 | . 1 . . Combat Hostiles . | . . . . Follow-up Attacks . | . . . . Damage Inflicted 1547 | . 439 . 1108 Guns . | . . . . Cannons 87 | . . . 87 Explosions 1386 | . 365 . 1021 Melee 74 | . 74 . . Ramming . | . . . . Kinetic . | . . . . Thermal 1108 | . . . 1108 Explosive 365 | . 365 . . Electromagnetic . | . . . . Impact 74 | . 74 . . Slashing . | . . . . Piercing . | . . . . Highest Corruption 3 | . . . 3 Average Corruption 1 | . . . 1 Corruption Purged . | . . . . Effects 1 | . . . 1 Energy Discharges 1 | . . . 1 Overload Shots . | . . . . Overflow Damage 28 | . 18 . 10 Projectiles . | . . . . Explosions 28 | . 18 . 10 Melee . | . . . . Knockbacks . | . . . . Impact . | . . . . Kinetic . | . . . . Secondary . | . . . . Self-Inflicted Damage 75 | . 51 . 24 Shots 4 | . 2 . 2 Rammed . | . . . . Targets Rammed . | . . . . Kicked . | . . . . Crushed . | . . . . Highest Temperature 576 | . . . 576 Average Temperature 361 | . . . 361 Received Heat Transfer 54 | . 48 . 6 Effects 1 | . . . 1 Interference 1 | . . . 1 Siege Activations . | . . . . Robots Corrupted . | . . . . Combat Hostiles . | . . . . Parts Fried . | . . . . Impact Corruptions . | . . . . Robots Melted 8 | . . . 8 Combat Hostiles 8 | . . . 8 Parts Melted 29 | . . . 29 Heat Transferred 6640 | . . . 6640 Parts Sabotaged . | . . . . Parts Stolen . | . . . . Parts Stripped . | . . . . Power Chain Reactions . | . . . . Missiles Intercepted . | . . . . Alert | -11 -10 -10 -10 ------- Run | Scr Mat Min Exi Peak Influence 37 | . 37 14 . Average Influence 11 | . 11 14 . Maximum Alert Level . | . . . . Low Security (%) 100 | 100 100 100 . Level 1 . | . . . . Level 2 . | . . . . Level 3 . | . . . . Level 4 . | . . . . Level 5 . | . . . . High Security . | . . . . Max Security . | . . . . Squads Dispatched 1 | . 1 . . Investigation . | . . . . Extermination . | . . . . Reinforcement 1 | . 1 . . Assault . | . . . . Garrison . | . . . . Intercept . | . . . . Construction Impeded . | . . . . Haulers Reinforced . | . . . . Stealth | -11 -10 -10 -10 --------- Run | Scr Mat Min Exi Distress Signals . | . . . . Communications Jammed . | . . . . Distress Signals . | . . . . Times Spotted 12 | . 3 . 9 Peak Tracking Total 19 | . 2 . 19 Tactical Retreats . | . . . . Traps | -11 -10 -10 -10 ------- Run | Scr Mat Min Exi Traps Triggered 1 | . . 1 . Indirectly . | . . . . Trap Hack Attempts . | . . . . Triggered . | . . . . Disarmed . | . . . . Reprogrammed . | . . . . Reused . | . . . . Traps Extracted . | . . . . Installed . | . . . . Triggered . | . . . . Exploded 1 | . . . 1 Machines | -11 -10 -10 -10 ---------- Run | Scr Mat Min Exi Machines Disabled . | . . . . Max in Single Turn . | . . . . Machines Sabotaged . | . . . . Garrisons Compromised . | . . . . Overloaded Fab Kills . | . . . . Fab Network Shutdowns . | . . . . Hacking | -11 -10 -10 -10 --------- Run | Scr Mat Min Exi Machines Accessed 1 | . . 1 . Terminals . | . . . . Fabricators . | . . . . Repair Stations . | . . . . Recycling Units . | . . . . Scanalyzers . | . . . . Garrison Access . | . . . . Total Hacks 1 | . . 1 . Successful 1 | . . 1 . Failed . | . . . . Catastrophic . | . . . . Database Lockouts . | . . . . Manual 1 | . . . 1 Terminals . | . . . . Fabricators . | . . . . Repair Stations . | . . . . Recycling Units . | . . . . Scanalyzers . | . . . . Garrison Access . | . . . . Terminal Hacks 1 | . . 1 . Open Door 1 | . . 1 . Fabricator Hacks . | . . . . Repair Station Hacks . | . . . . Recycling Unit Hacks . | . . . . Scanalyzer . | . . . . Garrison Access Hacks . | . . . . Unauthorized Hacks . | . . . . Terminals . | . . . . Fabricators . | . . . . Repair Stations . | . . . . Recycling Units . | . . . . Scanalyzers . | . . . . Garrison Access . | . . . . Data Cores Recovered . | . . . . Used . | . . . . Hacking Detections . | . . . . Full Trace Events . | . . . . Feedback Events . | . . . . Feedback Blocked . | . . . . Robot Schematics Acquired . | . . . . Robots Built . | . . . . Matter . | . . . . Time . | . . . . Total Robot Build Rating . | . . . . Part Schematics Acquired . | . . . . Parts Built . | . . . . Matter . | . . . . Time . | . . . . Total Part Build Rating . | . . . . Parts Repaired . | . . . . Time . | . . . . Parts Recycled . | . . . . Recycled Matter . | . . . . Retrieved Matter . | . . . . Retrieved Components . | . . . . Parts Scanalyzed . | . . . . Part Schematics Acquired . | . . . . Parts Damaged . | . . . . Bothacking | -11 -10 -10 -10 ------------ Run | Scr Mat Min Exi Used RIF Installer . | . . . . Robots Hacked . | . . . . Non-combat . | . . . . Combat . | . . . . Robot Hacks Applied . | . . . . Relay Couplers Released . | . . . . Robots Rewired . | . . . . Allies Hacked . | . . . . Hacks Repelled . | . . . . Allies | -11 -10 -10 -10 -------- Run | Scr Mat Min Exi Total Allies . | . . . . Largest Group . | . . . . Highest-Rated Group . | . . . . Highest-Rated Ally . | . . . . Total Orders . | . . . . Ally Attacks 9 | . . . 9 Total Damage 466 | . . . 466 Kills 6 | . . . 6 Allies Corrupted . | . . . . Allies Melted . | . . . . Turrets Deployed 3 | . . . 3 Intel | -11 -10 -10 -10 ------- Run | Scr Mat Min Exi Robot Analysis Total . | . . . . Derelict Logs Recovered . | . . . . Drone Launches . | . . . . Drone Recoveries . | . . . . Exploration | -11 -10 -10 -10 ------------- Run | Scr Mat Min Exi Turns Passed 777 | 9 75 84 609 Spaces Moved 352 | 18 100 44 190 Core 352 | 18 100 44 190 Treads . | . . . . Legs . | . . . . Wheels . | . . . . Hover . | . . . . Flight . | . . . . Fastest Speed 50 | 50 50 50 200 Average Speed 206 | 50 50 180 310 Slowest Speed 550 | 50 50 250 550 Overloaded Moves . | . . . . Propulsion Burnouts . | . . . . Robots Hopped . | . . . . Cave-ins Triggered . | . . . . Exploration Rate (%) 18 | 3 19 7 44 Regions Visited 3 Branch Regions 2 Pre-discovered Areas . | . . . . Known Exits Taken . | . . . . Unknown Exits Taken 3 | 1 1 1 . Scrap Searched 1 | . . 1 . Spaces Dug . | . . . . Terrain Destroyed 40 | . 38 . 2 Melee . | . . . . Projectile . | . . . . AOE 40 | . 38 . 2 Actions | -11 -10 -10 -10 --------- Run | Scr Mat Min Exi Total 388 | 17 112 49 210 Wait 4 | . . 4 . Move 349 | 17 99 43 190 Hop . | . . . . Pick Up 4 | . . . 4 Fast Attach 7 | . 2 2 3 Attach 1 | . . . 1 Detach 2 | . . . 2 Swap . | . . . . Drop 8 | . 1 . 7 Fire 10 | . 7 . 3 Melee 3 | . 3 . . Ram . | . . . . Kick . | . . . . Crush . | . . . . Escape Stasis . | . . . . Rewire . | . . . . Trap . | . . . . Miscellaneous . | . . . . Route ------- -11/Scrapyard -10/Materials -10/Mines -10/Exiles History --------- Turn | Location | Event 3 | -11/Scrapyard | Discovered new exit (range 15) 10 | -11/Scrapyard | Entered Materials 80 | -10/Materials | Discovered new exit (range 11) 85 | -10/Materials | Entered Mines 90 | -10/Mines | Met a Derelict who couldn't figure out how to use a Trap Extractor 157 | -10/Mines | Deemed a non-threat by the Exiles lab entrance 157 | -10/Mines | Discovered new exit (range 5) 169 | -10/Mines | Entered Exiles 229 | -10/Exiles | Met 8R-AWN 272 | -10/Exiles | Met EX-HEX 300 | -10/Exiles | Build established: Mutant 349 | -10/Exiles | Met EX-BIN 382 | -10/Exiles | Aligned with FarCom system 384 | -10/Exiles | Given EX-Vault access code 447 | -10/Exiles | Opened EX-Vault 447 | -10/Exiles | Upgraded with Power slot (x1) 447 | -10/Exiles | Upgraded with Propulsion slot (x1) 447 | -10/Exiles | Upgraded with Weapon slot (x1) 463 | -10/Exiles | Found Prototype Energy Cannon 463 | -10/Exiles | Identified Firepult 475 | -10/Exiles | Found Deploy-a-Sentry 482 | -10/Exiles | Found Deploy-a-Sentry 485 | -10/Exiles | Found Deploy-a-Sentry 607 | -10/Exiles | Warned to stay clear of 0b10 Research branches 630 | -10/Exiles | Exiles lab attacked by MAIN.C 708 | -10/Exiles | DAS Turret deployed 714 | -10/Exiles | DAS Turret deployed 720 | -10/Exiles | DAS Turret deployed 727 | -10/Exiles | Reached level 2 767 | -10/Exiles | Core integrity fell below 50% 776 | -10/Exiles | Core integrity fell below 20% 777 | -10/Exiles | Reached level 3 778 | -10/Exiles | Destroyed by H-55 Commando with Assault Rifle Last Messages --------------- 00775_ Melted Aluminum Leg. 00775_ Heat Sink melted. 00775_ G-34 Mercenary destroyed. 00776_ G-34 Mercenary critical meltdown. 00776_ Penetrated by Slug. 00776_ L-31 Rogue knocked back. 00777_ Melted Shock Rifle. 00777_ Reached level 3. 00777_ Melted Lgt. Nuclear Core. 00777_ Penetrated by Slug. 00777_ L-31 Rogue overheating. 00778_ Overheating: System interference. 00778_ Firepult temporarily disabled. 00778_ P-60 Hacker heat spikes uncontrollably. 00778_ P-60 Hacker critical meltdown. 00778_ Lgt. Angular Momentum Engine melted. 00778_ Target Analyzer melted. 00778_ Gravmag System melted. 00778_ H-55 Commando heat damages Targeting Computer, Gauss Rifle. 00778_ H-55 Commando critical meltdown. Map ----- +----------------------------------------------------+ | ??#????#??##"" #??##?#????#?#????????????###?? | | ????????####"" #???#?#????#???#?#????????????# | | ?????##""""""" ##???#????#?????#???????????#?? | | ?????"""" " "" ####?###########?#???????????? | | ? "" """ " #####"""""""""##?#??????????? | | " " t " """ """"##???????????? | | t "" " #???#???????? | | t " """#???????????? | | "a"#???????????# | | " "##???????#?## | | ""###???????#" | | """""" """#?#??#?##" | | ######""" "#????### | | ""##????#####""" ###??# | | """?#?#????#??##""" ##?## | | ? ???????#????????#"""" ### | | ???????#????????#??##"" [ | | ????? ????#?#??#####"""" = =%= # | | ????? ????????###""" l * ""# | | ????????? ??? """" %%[ ! #"""## | | ?????????? ?? =%% % ######? | | ????????????? %%* %=%[ =##???#?? | | ?????????? ?? *!* % ###??#??? | | ??????????? "? "" %[!= #???????? | | ??????????????? ##""" #"=[[ #??????#? | | ??????????"???? ???####" @ ##== ##?#?????? | | ???????????????????#??### #### # ##????????? | | ??????????????? ??????#######???#####?#??????#??? | | ??????????????????"?????????????????????????????#? | | ??????????????"????????????????????????#?????????? | | ??????????????? ?????????????????????????#??#????? | | ??????????????????????????????????#??????????#???? | | ??????????????????#?#????????????????????????????? | | ???????#?????????????????????????????????????????? | | ??????????????????#????????????#?????????????????? | | ??????????????????????????????????????????#??????? | | ???????????????????#?????????????????????????????? | | ?????????????????????????????????????????????????? | | ?????????????????????????#???????????????????????? | | ?????????????????????????????????????????????????? | | ?????????????????????????????????????????????????? | | ?????????????????????????????????????????????????? | | ?????????????????????????????????????????????????? | | ?????????????????????????????????????????????????? | | ?????????????????????????????????????????????????? | | ?????????????????????????????????????????????????? | | ?????????????????????????????????????????????????? | | ?????????????????????????????????????????????????? | | ?????????????????????????????????????????????????? | | ?????????????????????????????????????????????????? | +----------------------------------------------------+ Best States ------------- Heat Dissipation 25 Energy Generation 14 Energy Capacity 275 Matter Stores 215 Matter Capacity 300 Sight Range 16 Terrain Scan Range 20 Terrain Scan Density 10 Evasion (%) 50 Item Schematics ----------------- None Robot Schematics ------------------ None Fabricated ------------ Nothing Alien Tech Used ----------------- None Achievements -------------- None Challenges ------------ None RPGLIKE | -11 -10 -10 -10 --------- Run | Scr Mat Min Exi Levels Raised 2 | . . . 2 XP Earned 6711 | 3000 135 500 3076 XP Spent 3000 | . . . 3000 Upgrades 6 | . . . 6 Power Slot 1 | . . . 1 Propulsion Slot 1 | . . . 1 Weapon Slot 1 | . . . 1 Inventory Capacity 3 | . . . 3 Protomatter Created 300 | . . . 300 Protomatter Decayed 94 | . . . 94 Game ------ Seed DataVortexWings Manual? 1 Play Time 00:07:27 Cumulative 1039.2 hours Start 2020.04.29 @ 10:06:55 End 2020.04.29 @ 10:11:50 Sessions 1 Manual Loads 0 Difficulty Rogue Special Mode Winter2019/RPGLIKE Game No. 630 Rogue 630 Adventurer 0 Explorer 0 Win Type - Total 18 Types 10/1/4/3/0/0/0 Lore% 89 Gallery% 94 Achievement% 80 Wizard Run 0 Options --------- ASCII 0 Keyboard 0 Movement Mouse Keybinds 0 Fullscreen 2 Font 24/Crisp Map View 76x50 Tactical HUD 1 Map Filters NONE Filters NONE Steam 1 RUN: 6bd94e87-b2a4-48e8-a376-4b562df777d8